fUSD/lending_fUSD_20260324
["ID","MTS","AMOUNT","RATE_DAILY","PERIOD"]
[408863980,1774347221166,153.0,7.139e-05,2]
[408863981,1774347226361,172.0,7.139e-05,2]
[408863983,1774347632150,-570.64,0.00011507,2]
[408863984,1774347632174,-29.36,0.00011507,2]
[408863985,1774347688538,-254.64,0.00011507,2]
[408863986,1774347688562,-1588.97214491,0.00012547,2]
[408863987,1774347688589,-300.0,0.00012559,2]
[408863988,1774347688613,-300.0,0.00012559,2]
[408863989,1774347688637,-2556.38785509,0.00012561,2]
[408863990,1774347696129,2100.24,0.000161,120]
[408863991,1774347982616,5000.01,8e-05,2]
[408863992,1774347982642,3711.27384975,8e-05,2]
[408863993,1774348034689,3353.4,0.00017,60]
[408863994,1774348136802,60663.18568267,9.5e-05,3]
[408863995,1774348136829,5000.01,9.5e-05,3]
[408863996,1774348136858,100000.0,9.5e-05,3]
[408863997,1774348136886,6288.72615025,9.5e-05,3]
[408863998,1774348136912,303271.61940212,9.5e-05,3]
[408863999,1774348224386,-300.0,0.00012559,2]
[408864000,1774348224406,-3577.09214491,0.00012561,2]
[408864001,1774348224426,-200.0,0.00012561,2]
[408864002,1774348224446,-260.01,0.00012561,2]
[408864003,1774348224467,-1500.0,0.00012561,2]
[408864004,1774348224488,-2000.0,0.00012614,2]
[408864005,1774348224507,-5859.78,0.00012663,2]
[408864006,1774348224527,-500.0,0.000127,4]
[408864007,1774348224546,-1100.0,0.000128,4]
[408864008,1774348224566,-1700.0,0.000129,4]
[408864009,1774348224586,-1804.61041187,0.00013,15]
[408864010,1774348224606,-468.68371514,0.000131,2]
[408864011,1774348224626,-970.57784434,0.000131,2]
[408864012,1774348224646,-1073.95739002,0.000131,2]
[408864013,1774348224667,-1111.65059992,0.000131,2]
[408864014,1774348224686,-150.0,0.00013165,2]
[408864015,1774348224706,-219.57473757,0.00013166,2]
[408864016,1774348224726,-1650.30262233,0.00013166,2]
[408864017,1774348224746,-3158.75743743,0.00013166,2]
[408864018,1774348224777,-5512.75262148,0.00013166,2]
[408864019,1774348224802,-52820.26338297,0.00013175,2]
[408864020,1774348224826,-500.0,0.00013187,2]
[408864021,1774348224852,-500.0,0.00013187,2]
[408864022,1774348224879,-263.27012715,0.00013187,2]
[408864023,1774348224904,-4522.0441,0.00013233,2]
[408864024,1774348224928,-1608.43,0.00013233,2]
[408864025,1774348224951,-613.723,0.00013256,2]
[408864026,1774348224980,-500.0,0.00013265,2]
[408864027,1774348225007,-500.0,0.00013265,2]
[408864028,1774348225035,-500.0,0.00013265,2]
[408864029,1774348225063,-500.0,0.00013265,2]
[408864030,1774348225090,-500.0,0.00013265,2]
[408864031,1774348225117,-500.0,0.00013265,2]
[408864032,1774348225145,-500.0,0.00013265,2]
[408864033,1774348225171,-500.0,0.00013265,2]
[408864034,1774348225198,-469.32891298,0.00013265,2]
[408864035,1774348225232,-500.0,0.00013265,2]
[408864036,1774348225258,-500.0,0.00013265,2]
[408864037,1774348225284,-500.0,0.00013265,2]
[408864038,1774348225308,-500.0,0.00013265,2]
[408864039,1774348225334,-500.0,0.00013265,2]
[408864040,1774348225362,-500.0,0.00013265,2]
[408864041,1774348225385,-500.0,0.00013265,2]
[408864042,1774348225410,-500.0,0.00013265,2]
[408864043,1774348225436,-500.0,0.00013265,2]
[408864044,1774348225460,-500.0,0.00013265,2]
[408864045,1774348225487,-500.0,0.00013265,2]
[408864046,1774348225517,-500.0,0.00013265,2]
[408864047,1774348225543,-500.0,0.00013265,2]
[408864048,1774348225570,-502.58527172,0.00013265,2]
[408864049,1774348225595,-502.58527172,0.00013265,2]
[408864050,1774348225621,-502.58527172,0.00013265,2]
[408864051,1774348225647,-502.58527172,0.00013265,2]
[408864052,1774348225673,-502.58527172,0.00013265,2]
[408864053,1774348225698,-502.58527172,0.00013265,2]
[408864054,1774348225724,-502.58527172,0.00013265,2]
[408864055,1774348225750,-502.58527172,0.00013265,2]
[408864056,1774348225776,-502.58527172,0.00013265,2]
[408864057,1774348225801,-502.58527172,0.00013265,2]
[408864058,1774348225827,-502.58527172,0.00013265,2]
[408864059,1774348225853,-502.58527172,0.00013265,2]
[408864060,1774348225879,-502.58527172,0.00013265,2]
[408864061,1774348225905,-500.0,0.00013265,2]
[408864062,1774348225931,-500.0,0.00013265,2]
[408864063,1774348225957,-500.0,0.00013265,2]
[408864064,1774348225983,-500.0,0.00013265,2]
[408864065,1774348226007,-500.0,0.00013265,2]
[408864066,1774348226033,-500.0,0.00013265,2]
[408864067,1774348226057,-500.0,0.00013265,2]
[408864068,1774348226081,-243.83873687,0.00013265,2]
[408864069,1774348226106,-500.0,0.00013265,2]
[408864070,1774348226132,-500.0,0.00013265,2]
[408864071,1774348226158,-500.0,0.00013265,2]
[408864072,1774348226185,-500.0,0.00013265,2]
[408864073,1774348226211,-500.0,0.00013265,2]
[408864074,1774348226237,-500.0,0.00013265,2]
[408864075,1774348226262,-500.0,0.00013265,2]
[408864076,1774348226288,-500.0,0.00013265,2]
[408864077,1774348226314,-500.0,0.00013265,2]
[408864078,1774348226339,-500.0,0.00013265,2]
[408864079,1774348226365,-500.0,0.00013265,2]
[408864080,1774348226390,-500.0,0.00013265,2]
[408864081,1774348226415,-500.0,0.00013265,2]
[408864082,1774348226440,-500.0,0.00013265,2]
[408864083,1774348226466,-500.0,0.00013265,2]
[408864084,1774348226490,-500.0,0.00013265,2]
[408864085,1774348226515,-500.0,0.00013265,2]
[408864086,1774348226540,-500.0,0.00013265,2]
[408864087,1774348226565,-500.0,0.00013265,2]
[408864088,1774348226591,-500.0,0.00013265,2]
[408864089,1774348226617,-500.0,0.00013265,2]
[408864090,1774348226642,-500.0,0.00013265,2]
[408864091,1774348226671,-500.0,0.00013265,2]
[408864092,1774348226697,-500.0,0.00013265,2]
[408864093,1774348226723,-500.0,0.00013265,2]
[408864094,1774348226748,-500.0,0.00013265,2]
[408864095,1774348226774,-556.70059671,0.00013265,2]
[408864096,1774348226800,-500.0,0.00013265,2]
[408864097,1774348226825,-500.0,0.00013265,2]
[408864098,1774348226849,-500.0,0.00013265,2]
[408864099,1774348226874,-500.0,0.00013265,2]
[408864100,1774348226898,-500.0,0.00013265,2]
[408864101,1774348226923,-500.0,0.00013265,2]
[408864102,1774348226947,-176.4775385,0.00013265,2]
[408864103,1774348226971,-500.0,0.00013265,2]
[408864104,1774348226995,-500.0,0.00013265,2]
[408864105,1774348227028,-252.32674455,0.00013265,2]
[408864106,1774348227056,-500.0,0.00013265,2]
[408864107,1774348227083,-500.0,0.00013265,2]
[408864108,1774348227106,-545.45420254,0.00013265,2]
[408864109,1774348227128,-500.0,0.00013265,2]
[408864110,1774348227151,-369.65697198,0.00013265,2]
[408864111,1774348227178,-502.58527172,0.00013265,2]
[408864112,1774348227201,-150.27030947,0.00013265,2]
[408864113,1774348227227,-500.0,0.00013265,2]
[408864114,1774348227251,-175.19866784,0.00013265,2]
[408864115,1774348227279,-502.58527172,0.00013265,2]
[408864116,1774348227306,-502.58527172,0.00013265,2]
[408864117,1774348227329,-500.0,0.00013265,2]
[408864118,1774348227352,-500.0,0.00013265,2]
[408864119,1774348227375,-352.22811908,0.00013265,2]
[408864120,1774348227401,-502.58527172,0.00013265,2]
[408864121,1774348227429,-502.58527172,0.00013265,2]
[408864122,1774348227454,-206.57,0.00013265,2]
[408864123,1774348227479,-1488604.8885,0.00013266,2]
[408864124,1774348227501,-28386.9044,0.00013266,2]
[408864125,1774348227525,-500.0,0.00013266,2]
[408864126,1774348227548,-351.02,0.00013266,2]
[408864127,1774348227569,-999.99,0.00013266,2]
[408864128,1774348227591,-500.0,0.00013273,2]
[408864129,1774348227615,-500.0,0.00013273,2]
[408864130,1774348227639,-8506.75,0.00013366,2]
[408864131,1774348227661,-9999.99,0.00013366,2]
[408864132,1774348227684,-9999.99,0.00013366,2]
[408864133,1774348227709,-150.99,0.00013366,2]
[408864134,1774348227733,-65338.46,0.00013366,2]
[408864135,1774348227757,-299.99,0.00013366,2]
[408864136,1774348227783,-1000.0,0.00013466,2]
[408864137,1774348227809,-1650.30262232,0.0001347,2]
[408864138,1774348227834,-3158.75743743,0.0001347,2]
[408864139,1774348227858,-206.58,0.00013539,2]
[408864140,1774348228321,-5512.75262146,0.00013557,2]
[408864141,1774348228344,-500.0,0.00013698,2]
[408864142,1774348228364,-500.0,0.00013698,2]
[408864143,1774348228384,-500.0,0.00013698,2]
[408864144,1774348228405,-500.0,0.00013698,2]
[408864145,1774348228424,-500.0,0.00013698,2]
[408864146,1774348228443,-500.0,0.00013698,2]
[408864147,1774348228463,-500.0,0.00013698,2]
[408864148,1774348228483,-500.0,0.00013698,2]
[408864149,1774348228504,-529.42180418,0.00013698,2]
[408864150,1774348228525,-500.0,0.00013698,2]
[408864151,1774348228545,-623.17225997,0.00013698,2]
[408864152,1774348228565,-500.0,0.00013698,2]
[408864153,1774348228585,-405.4389704,0.00013698,2]
[408864154,1774348228606,-257.73702656,0.00013698,2]
[408864155,1774348228627,-500.0,0.00013698,2]
[408864156,1774348228647,-500.0,0.00013698,2]
[408864157,1774348228667,-500.0,0.00013698,2]
[408864158,1774348228689,-500.0,0.00013698,2]
[408864159,1774348228709,-500.0,0.00013698,2]
[408864160,1774348228730,-604.01853711,0.00013698,2]
[408864161,1774348228750,-500.0,0.00013698,2]
[408864162,1774348228770,-500.0,0.00013698,2]
[408864163,1774348228790,-500.0,0.00013698,2]
[408864164,1774348228810,-500.0,0.00013698,2]
[408864165,1774348228830,-500.0,0.00013698,2]
[408864166,1774348228851,-500.0,0.00013698,2]
[408864167,1774348228872,-500.0,0.00013698,2]
[408864168,1774348228892,-500.0,0.00013698,2]
[408864169,1774348228912,-200.0,0.00013699,2]
[408864170,1774348228932,-500.0,0.00013699,2]
[408864171,1774348228951,-214.75693323,0.00013699,2]
[408864172,1774348228973,-500.0,0.00013699,2]
[408864173,1774348228993,-348.67349795,0.00013699,2]
[408864174,1774348229014,-547.70188919,0.00013699,2]
[408864175,1774348229034,-500.0,0.00013699,2]
[408864176,1774348229053,-500.0,0.00013699,2]
[408864177,1774348229072,-500.0,0.00013699,2]
[408864178,1774348229092,-171.5,0.000137,2]
[408864179,1774348229112,-162.67,0.000137,2]
[408864180,1774348229133,-178.68,0.000137,2]
[408864181,1774348229154,-156.44,0.000137,2]
[408864182,1774348229175,-1650.30262232,0.00013774,2]
[408864183,1774348229195,-3158.75743743,0.00013774,2]
[408864184,1774348229218,-600.0,0.00013815,2]
[408864185,1774348229237,-300.0,0.00013815,2]
[408864186,1774348229258,-300.0,0.00013815,2]
[408864187,1774348229279,-600.0,0.00013815,2]
[408864188,1774348229299,-200.0,0.00013815,2]
[408864189,1774348229319,-200.0,0.00013815,2]
[408864190,1774348229341,-200.0,0.00013815,2]
[408864191,1774348229361,-237.65448027,0.00013815,2]
[408864192,1774348229381,-1524.90563629,0.00013815,2]
[408864200,1774348231979,-201.77324607,0.00013256,2]
[408864202,1774348231988,-201.81098401,0.00013815,2]
[408864205,1774348232035,-773.2833797,0.00013815,2]
[408864206,1774348232045,-2500.0,0.00013815,2]
[408864207,1774348232054,-2500.0,0.00013815,2]
[408864208,1774348232063,-2500.0,0.00013815,2]
[408864209,1774348232074,-500.0,0.00013815,2]
[408864210,1774348232083,-500.0,0.00013815,2]
[408864212,1774348232296,-502.24889578,0.00013815,2]
[408864213,1774348232306,-300.0,0.00013817,2]
[408864214,1774348232315,-252.31247552,0.00013817,2]
[408864215,1774348232325,-600.0,0.00013817,2]
[408864216,1774348232335,-200.0,0.00013817,2]
[408864217,1774348232344,-109.63921671,0.00013817,2]
[408864218,1774348232357,-227.39492564,0.00013817,2]
[408864219,1774348232366,-454.89793297,0.00013821,2]
[408864220,1774348232376,-197.1277,0.000139,2]
[408864221,1774348232385,-652.40117892,0.00013927,2]
[408864222,1774348232394,-5512.75262146,0.00013947,2]
[408864223,1774348232403,-529.0,0.00014,2]
[408864224,1774348232413,-1650.30262232,0.00014077,2]
[408864225,1774348232422,-188.62301869,0.00014077,2]
[408864226,1774348232441,-867.61452967,0.00014077,2]
[408864227,1774348232452,-2102.51988907,0.00014077,2]
[408864228,1774348232462,-2000.0,0.00014191,2]
[408864229,1774348232472,-500.0,0.00014246,2]
[408864230,1774348232482,-1000.0,0.00014247,2]
[408864231,1774348232491,-743.14969616,0.00014247,2]
[408864232,1774348232509,-256.85030384,0.00014247,2]
[408864233,1774348232520,-500.0,0.00014247,2]
[408864234,1774348232530,-341.04194813,0.00014247,2]
[408864236,1774348232602,-76.85304714,0.00014247,2]
[408864237,1774348232611,-1000.0,0.00014247,2]
[408864238,1774348232621,-255.0,0.00014271,2]
[408864239,1774348232631,-223.79421137,0.0001429,2]
[408864240,1774348232640,-166.66,0.00014324,2]
[408864241,1774348232650,-5512.75262146,0.00014338,2]
[408864242,1774348232659,-1650.30262232,0.00014381,2]
[408864243,1774348232668,-3158.75743743,0.00014381,2]
[408864244,1774348232677,-1650.30262232,0.00014685,2]
[408864245,1774348232687,-3158.75743743,0.00014685,2]
[408864246,1774348232696,-5512.75262146,0.00014728,2]
[408864247,1774348232706,-610.60330757,0.00014795,2]
[408864248,1774348232716,-1500.0,0.00014795,2]
[408864249,1774348232723,-1650.30262232,0.00014989,2]
[408864250,1774348232733,-3158.75743743,0.00014989,2]
[408864251,1774348232742,-240.64299665,0.00015068,2]
[408864252,1774348232754,-2259.35700335,0.00015068,2]
[408864253,1774348232763,-1107.6420435,0.00015068,2]
[408864254,1774348232772,-5512.75262146,0.00015119,2]
[408864255,1774348232782,-9552.16786547,0.00015199,2]
[408864256,1774348232791,-500.0,0.00015199,2]
[408864257,1774348232800,-500.0,0.00015199,2]
[408864258,1774348232809,-500.0,0.00015199,2]
[408864259,1774348232818,-500.0,0.00015199,2]
[408864260,1774348232827,-500.0,0.00015199,2]
[408864261,1774348232836,-500.0,0.00015199,2]
[408864262,1774348232845,-389.04698715,0.00015199,2]
[408864263,1774348232854,-500.0,0.00015199,2]
[408864264,1774348232863,-516.47340423,0.00015199,2]
[408864265,1774348232872,-500.0,0.00015199,2]
[408864266,1774348232881,-500.0,0.00015199,2]
[408864267,1774348232891,-500.0,0.00015199,2]
[408864269,1774348232900,-500.0,0.00015199,2]
[408864270,1774348232909,-500.0,0.00015199,2]
[408864271,1774348232918,-500.0,0.00015199,2]
[408864272,1774348232927,-151.0,0.00015199,2]
[408864273,1774348232937,-500.0,0.00015199,2]
[408864274,1774348232946,-500.0,0.00015199,2]
[408864275,1774348232955,-500.0,0.00015199,2]
[408864276,1774348232964,-500.0,0.00015199,2]
[408864277,1774348232973,-500.0,0.00015199,2]
[408864278,1774348232983,-250.0,0.00015199,2]
[408864279,1774348232992,-335.32119913,0.00015199,2]
[408864280,1774348233001,-262.90206542,0.00015199,2]
[408864281,1774348233011,-9905.5980765,0.00015254,2]
[408864282,1774348233020,-500.0,0.00015254,2]
[408864283,1774348233029,-151.0,0.00015254,2]
[408864284,1774348233039,-272.62944185,0.00015254,2]
[408864285,1774348233048,-1650.30262232,0.00015292,2]
[408864286,1774348233057,-3158.75743743,0.00015292,2]
[408864287,1774348233066,-1587.78675544,0.000153,5]
[408864288,1774348233077,-712.21324456,0.000153,5]
[408864289,1774348233087,-10272.10520533,0.00015309,2]
[408864290,1774348233096,-500.0,0.00015309,2]
[408864291,1774348233106,-209.50441537,0.00015309,2]
[408864292,1774348233115,-346.13114041,0.00015309,2]
[408864293,1774348233125,-333.87687841,0.00015342,2]
[408864294,1774348233134,-10652.17309792,0.00015364,2]
[408864295,1774348233143,-500.0,0.00015364,2]
[408864296,1774348233152,-2900.0,0.000154,5]
[408864297,1774348233161,-3003.68761584,0.00015419,2]
[408864298,1774348233173,-255.51004428,0.00015419,2]
[408864303,1774348238248,-419.55045188,0.00015419,2]
[408864307,1774348240399,-4290.9267812,0.00015419,2]
[408864308,1774348240408,-500.0,0.00015419,2]
[408864309,1774348240418,-433.0,0.00015469,2]
[408864310,1774348240427,-500.0,0.00015474,2]
[408864311,1774348240437,-500.0,0.000155,5]
[408864312,1774348240446,-5512.75262146,0.00015509,2]
[408864313,1774348240456,-500.0,0.00015529,2]
[408864314,1774348240466,-500.0,0.00015584,2]
[408864315,1774348240475,-1650.30262232,0.00015596,2]
[408864316,1774348240484,-3158.75743743,0.00015596,2]
[408864317,1774348240493,-500.0,0.000156,5]
[408864318,1774348240502,-500.0,0.00015639,2]
[408864319,1774348240512,-500.0,0.00015694,2]
[408864320,1774348240521,-500.0,0.000157,5]
[408864321,1774348240530,-500.0,0.00015749,2]
[408864322,1774348240539,-2000.0,0.00015768,2]
[408864323,1774348240548,-1018.62684357,0.00015778,2]
[408864324,1774348240557,-1076.20273929,0.00015778,2]
[408864325,1774348240566,-1117.75384942,0.00015778,2]
[408864326,1774348240575,-500.0,0.000158,5]
[408864327,1774348240583,-559.0,0.00015866,5]
[408864328,1774348240592,-449.0,0.00015866,5]
[408864329,1774348240601,-559.26064706,0.00015888,2]
[408864330,1774348240611,-9993.72996145,0.00015888,2]
[408864331,1774348240620,-294.13685732,0.0001589,2]
[408864332,1774348240629,-559.26064704,0.00015894,2]
[408864333,1774348240639,-9993.72996143,0.00015894,2]
[408864334,1774348240648,-205.5763,0.000159,2]
[408864335,1774348240657,-1650.30262232,0.000159,2]
[408864336,1774348240666,-3158.75743743,0.000159,2]
[408864337,1774348240676,-1100.0,0.000159,5]
[408864338,1774348240685,-559.26064704,0.000159,2]
[408864339,1774348240694,-9993.72996143,0.000159,2]
[408864340,1774348240703,-5512.75262146,0.000159,2]
[408864341,1774348240713,-500.0,0.00015973,2]
[408864342,1774348240723,-563.70890882,0.00015987,2]
[408864343,1774348240732,-767905.0445175,0.00015988,2]
[408864344,1774348240741,-191952.7213954,0.00015988,2]
[408864345,1774348240750,-201.77324607,0.0001599,2]
[408864346,1774348240760,-3024.1851172,0.00015995,2]
[408864347,1774348240770,-155.0,0.00015999,2]
[408864348,1774348240779,-1277856.39974424,0.00016,2]
[408864350,1774348244158,-3244.72416054,0.00016,2]
[408864358,1774348246237,-2072.54365153,0.00016,2]
[408864359,1774348246292,-10239.13095902,0.00016,2]
[408864363,1774348687123,1279.13108397,0.00017,60]
[408864364,1774348770064,-250.0,0.00012429,2]
[408864365,1774348770093,-327.8108,0.00012461,2]
[408864366,1774348770122,-1588.97214491,0.00012887,2]
[408864367,1774348770149,-211.78864119,0.000129,2]
[408864368,1774348770318,-312.2181324,0.000129,2]
[408864369,1774348770346,-182.05122344,0.000129,2]
[408864370,1774348770373,-572.04136578,0.00012973,2]
[408864371,1774348770403,-1378.1881554,0.00012973,2]
[408864372,1774348770477,-300.0,0.00012974,2]
[408864373,1774348770503,-1200.0,0.00012974,2]
[408864374,1774348770530,-779.69480697,0.00012975,2]
[408864375,1774348776071,-440.62038606,0.00012975,2]
[408864376,1774348777277,-2288.57119312,0.00012999,2]
[408864377,1774348780052,-2101.85069512,0.00012999,2]
[408864378,1774348780076,-796.30860976,0.00012999,2]
[408864379,1774348780164,-250.0,0.00013,2]
[408864380,1774348780190,-150.0,0.00013065,2]
[408864381,1774348780217,-205.25852884,0.00013065,2]
[408864382,1774348780243,-610.68711581,0.00013065,2]
[408864383,1774348780269,-621.81794177,0.00013065,2]
[408864384,1774348780390,-1324.48282716,0.00013066,2]
[408864385,1774348780645,-5000.01,0.00013066,2]
[408864386,1774348904078,-490.979,0.00012805,2]
[408864387,1774348904098,-2500.0,0.00012966,2]
[408864388,1774348904119,-700.21913534,0.00013056,2]
[408864389,1774348904140,-480.0,0.00013064,2]
[408864390,1774348904161,-312.0,0.00013064,2]
[408864391,1774348904182,-300.0,0.00013064,2]
[408864392,1774348904202,-530.4258269,0.00013065,2]
[408864393,1774348904224,-179.70344844,0.00013065,2]
[408864394,1774348904245,-500.0,0.00013065,2]
[408864395,1774348904268,-500.0,0.00013065,2]
[408864396,1774348904290,-500.0,0.00013065,2]
[408864397,1774348904559,-482.86872517,0.00013065,2]
[408864398,1774348904583,-500.0,0.00013065,2]
[408864399,1774348904604,-500.0,0.00013065,2]
[408864400,1774348904627,-1291523.80386415,0.00013066,2]
[408864401,1774349268962,-1098.2836737,0.00012973,2]
[408864402,1774349268984,-514.83722922,0.00012973,2]
[408864403,1774349269005,-300.0,0.00013057,2]
[408864404,1774349269026,-150.0,0.00013057,2]
[408864405,1774349269048,-300.0,0.00013057,2]
[408864406,1774349269068,-500.0,0.00013058,2]
[408864407,1774349269088,-500.0,0.00013058,2]
[408864408,1774349269109,-500.0,0.00013058,2]
[408864409,1774349269128,-500.0,0.00013058,2]
[408864410,1774349269149,-151.0,0.00013058,2]
[408864411,1774349269173,-151.0,0.00013058,2]
[408864412,1774349269193,-151.0,0.00013058,2]
[408864413,1774349269213,-151.0,0.00013058,2]
[408864414,1774349269233,-151.0,0.00013058,2]
[408864415,1774349269254,-151.0,0.00013058,2]
[408864416,1774349269274,-151.0,0.00013058,2]
[408864417,1774349269294,-151.0,0.00013058,2]
[408864418,1774349269315,-151.0,0.00013058,2]
[408864419,1774349269336,-151.0,0.00013058,2]
[408864420,1774349269356,-151.0,0.00013058,2]
[408864421,1774349269376,-151.0,0.00013058,2]
[408864422,1774349269397,-151.0,0.00013058,2]
[408864423,1774349269418,-151.0,0.00013058,2]
[408864424,1774349269438,-151.0,0.00013058,2]
[408864425,1774349269461,-151.0,0.00013058,2]
[408864426,1774349269481,-151.0,0.00013058,2]
[408864427,1774349269502,-161.65319678,0.00013058,2]
[408864428,1774349269521,-151.70860914,0.00013058,2]
[408864429,1774349269546,-151.0,0.00013058,2]
[408864430,1774349269782,-151.0,0.00013058,2]
[408864431,1774349269803,-151.0,0.00013058,2]
[408864432,1774349269823,-151.0,0.00013058,2]
[408864433,1774349269842,-151.0,0.00013058,2]
[408864434,1774349269862,-151.0,0.00013058,2]
[408864435,1774349269882,-151.0,0.00013058,2]
[408864436,1774349269902,-151.0,0.00013058,2]
[408864437,1774349269922,-151.0,0.00013058,2]
[408864438,1774349269942,-151.0,0.00013058,2]
[408864439,1774349269961,-151.0,0.00013058,2]
[408864440,1774349269985,-151.0,0.00013058,2]
[408864441,1774349282725,150.0,0.00013065,2]
[408864442,1774349284842,300.0,0.00013065,2]
[408864443,1774349302605,1205.91463594,0.00012973,2]
[408864444,1774349341137,300.0,0.00013065,2]
[408864445,1774349363787,3044.09536406,0.00013066,2]
[408864446,1774349363812,5000.01,0.00013066,2]
[408864447,1774349363834,5000.01,0.00013066,2]
[408864448,1774349363856,52.68581824,0.00013066,2]
[408864449,1774349374957,463.35350628,0.00013066,2]
[408864450,1774349387527,4536.65649372,0.00012966,2]
[408864451,1774349387548,5000.01,0.00012966,2]
[408864452,1774349387574,5000.01,0.00012966,2]
[408864453,1774349387595,5896.83147292,0.00012966,2]
[408864455,1774349432282,-310.0,0.00012966,2]
[408864456,1774349432292,-1313.06639354,0.00012966,2]
[408864457,1774349432305,-616.38608097,0.00012966,2]
[408864458,1774349432319,-895.86861586,0.00012966,2]
[408864459,1774349432376,-465.03428202,0.00012966,2]
[408864460,1774349434258,-263337.66808071,0.00012966,2]
[408864461,1774349434270,-37750.12746013,0.00012966,2]
[408864462,1774349434281,-69913.73518689,0.00012966,2]
[408864463,1774349434292,-296.369996,0.00012966,2]
[408864464,1774349434302,-5965.02265114,0.00012966,2]
[408864465,1774349438183,-263233.05142209,0.00012966,2]
[408864466,1774349438194,-4897.49151961,0.00012966,2]
[408864467,1774349438289,-2830.37514278,0.00012966,2]
[408864468,1774349438399,-113525.67690162,0.00012966,2]
[408864469,1774349438408,-343325.37060869,0.00013066,2]
[408864470,1774349438418,-588.47473116,0.00013073,2]
[408864471,1774349438427,-500.0,0.00013073,2]
[408864472,1774349438437,-500.41700518,0.00013073,2]
[408864473,1774349438446,-1319.27353764,0.00013117,2]
[408864475,1774349438456,-350.1262,0.00013166,2]
[408864477,1774349438465,-1000.0,0.00013166,2]
[408864479,1774349438474,-217.73,0.00013265,2]
[408864481,1774349438484,-9999.99,0.00013298,2]
[408864483,1774349438494,-1479.36,0.00013298,2]
[408864485,1774349438503,-9999.99,0.00013298,2]
[408864486,1774349438513,-463.35350623,0.00013381,2]
[408864488,1774349438522,-1205.91463594,0.00013391,2]
[408864490,1774349438531,-217.73,0.00013539,2]
[408864491,1774349438540,-463.35350623,0.00013696,2]
[408864492,1774349438549,-500.0,0.00013698,2]
[408864493,1774349438559,-500.0,0.00013698,2]
[408864494,1774349438569,-500.0,0.00013698,2]
[408864495,1774349438582,-500.0,0.00013698,2]
[408864496,1774349438591,-500.0,0.00013698,2]
[408864497,1774349438601,-500.0,0.00013698,2]
[408864498,1774349438610,-500.0,0.00013698,2]
[408864499,1774349438619,-500.0,0.00013698,2]
[408864500,1774349438627,-500.0,0.00013698,2]
[408864501,1774349438637,-500.0,0.00013698,2]
[408864502,1774349438647,-500.0,0.00013698,2]
[408864503,1774349438657,-500.0,0.00013698,2]
[408864504,1774349438666,-619.28774558,0.00013698,2]
[408864505,1774349438675,-500.0,0.00013698,2]
[408864506,1774349438685,-500.0,0.00013698,2]
[408864507,1774349438694,-185.35845042,0.00013698,2]
[408864508,1774349438703,-500.0,0.00013698,2]
[408864509,1774349438712,-500.0,0.00013698,2]
[408864510,1774349438721,-500.0,0.00013698,2]
[408864511,1774349438730,-500.0,0.00013698,2]
[408864512,1774349438740,-500.0,0.00013698,2]
[408864513,1774349438750,-500.0,0.00013698,2]
[408864514,1774349438759,-500.0,0.00013698,2]
[408864515,1774349438768,-527.29021656,0.00013698,2]
[408864516,1774349438777,-522.25164134,0.00013698,2]
[408864517,1774349438787,-150.0,0.00013699,2]
[408864518,1774349438796,-150.0,0.00013699,2]
[408864519,1774349438805,-171.5,0.000137,2]
[408864520,1774349438814,-172.48,0.000137,2]